Workbook

Sheet Filter Assessment
C1: FILTER ASSESSMENT REPORT FOR INDIVIDUAL FILTERS
C2: FOR PUBLIC WATER SYSTEMS THAT ARE USING SURFACE WATER SOURCES OR GROUND WATER SOURCES UNDER
C3: THE INFLUENCE OF SURFACE WATER THAT ARE REQUIRED TO CONDUCT AN INDIVIDUAL FILTER ASSSESSMENT
C5: PUBLIC WATER | D5: TCEQ WSC | K5: PLANT NAME | L5: PDWS Water Treatment Plant
C6: SYSTEM NAME: | K6: OR NUMBER:
D7: 1234567 | K7: FILTER | L7: Filter No. 5
C8: PWS ID No.: | K8: NUMBER:
C10: First Event: | D10: 2015-12-24 | H10: Second Event: | I10: 2016-01-06 | K10: Third Event: | L10: 2016-02-12
G12: DESIGN SPECIFICATIONS
C14: FILTER TYPE | E14: Gravity | I14: OPERATING MODE | K14: Constant Rate/Variable Level
E16: Diameter (ft) | G16: Length (ft) | I16: Width (ft) | J16: Surface Area (ft2) | L16: Freeboard (ft) | M16: Max Head Loss (ft)
C17: MEDIA BED DIMENSIONS | G17: 12 | I17: 24 | J17: =IF(AND(ISBLANK(E17),ISBLANK(G17),ISBLANK(I17)),"",IF(AND(E17>0,ISBLANK(G17),ISBLANK(I17)),3.1417*(E17/2)^2,IF(AND(E17=0,G17>0,I17>0),G17*I17,"ERROR"))) -> 288 | L17: 3.25 | M17: 13
C19: MEDIA TYPE | E19: Multiple Media
C20: MEDIA SPECS | E20: Material | G20: Depth (inches) | I20: Min. Size (mm) | K20: Max. Size (mm) | L20: UC | M20: Specific Gravity
C21: Layer 1 Material | E21: Anthracite | G21: 24 | I21: 0.9 | K21: 1.2 | L21: 1.6 | M21: Unknown
C22: Layer 2 Material | E22: Sand | G22: 12 | I22: 0.45 | K22: 0.55 | L22: 1.4 | M22: Unknown
C23: Layer 3 Material | E23: Garnet | G23: 3 | I23: 0.2 | K23: 0.35 | L23: 1.4 | M23: Unknown
C24: Layer 4 Material
C25: TOTAL DEPTH (inches) | E25: =IF(E21="Unknown","Unknown",IF(SUM(G21:H24)=0,"",SUM(G21:H24))) -> 39
C26: L/D RATIO | E26: =IF(E25="Unknown","Unknown",IF(ISTEXT(E25),"",E25^2*25.4/((I21+K21)/2*G21+(I22+K22)/2*G22+(I23+K23)/2*G23+(I24+K24)/2*G24))) -> 1206.351288
C28: UNDERDRAIN TYPE | E28: Type-S with gravel
E29: No. of Grades | G29: Min. Size (in) | I29: Max. Size (in) | J29: Total Depth (in)
C30: SUPPORT GRAVEL | E30: 4 | G30: 0.25 | I30: 1.5 | J30: 12
C32: TROUGHS | G32: SUPPL. BACKWASH | J32: Air Scour (retrofit)
C33: Number. | E33: 5
C34: Separation (inches) | E34: 39 | G34: FILTER-TO-WASTE | J34: No
E36: Regulatory Std | G36: Design | I36: Typical | J36: During Backwash | L36: Maximum | M36: App'd Exception
C37: FILTER FLOW RATE (gpm) | E37: =IF(E14="","",IF(E38="Other","Unspecified",IF(OR(J17="",J17="ERROR"),"Surface Area = ?",E38*J17))) -> 1440 | G37: 1400 | I37: 1111 | J37: 1333 | L37: 1833 | M37: None
C38: LOADING RATE (gpm/ft2) | E38: =IF(E14="","",IF(Lists!N3="Yes",6.5,IF(Lists!N4="Yes",5,IF(Lists!N5="Yes",2.5,IF(Lists!N6="Yes",2,"Other"))))) -> 5 | G38: =IF(E14="","",IF(OR(J17="",J17="ERROR"),"Surface Area = ?",IF(G37="","Filter Flow Rate = ?",G37/J17))) -> 4.861111111 | I38: =IF(E14="","",IF(OR(J17="",J17="ERROR"),"Surface Area = ?",IF(I37="","Filter Flow Rate = ?",I37/J17))) -> 3.857638889 | J38: =IF(E14="","",IF(OR(J17="",J17="ERROR"),"Surface Area = ?",IF(J37="","Filter Flow Rate = ?",J37/J17))) -> 4.628472222 | L38: =IF(E14="","",IF(OR(J17="",J17="ERROR"),"Surface Area = ?",IF(L37="","Filter Flow Rate = ?",L37/J17))) -> 6.364583333 | M38: None
C39: BW FLOW RATE (gpm) | E39: =IF(E14="","",IF(OR(J17="",J17="ERROR"),"Surface Area = ?",ROUND(J17*12.5,0)&" - "&ROUND(J17*21.8,0))) -> 3600 - 6278 | G39: 5000 | I39: 3800 | L39: 5000
C40: BW LOADING RATE (gpm/ft2) | E40: =IF(E14="","","12.5 - 21.8") -> 12.5 - 21.8 | G40: =IF(E14="","",IF(G39="unknown", "Unknown",IF(OR(J17="",J17="ERROR"),"Surface Area = ?",IF(G39="","Backwash Rate = ?",G39/J17)))) -> 17.36111111 | I40: =IF(E14="","",IF(OR(J17="",J17="ERROR"),"Surface Area = ?",IF(I39="","Backwash Rate = ?",I39/J17))) -> 13.19444444 | L40: =IF(E14="","",IF(OR(J17="",J17="ERROR"),"Surface Area = ?",IF(L39="","Backwash Rate = ?",L39/J17))) -> 17.36111111
E42: Source | G42: Controller | I42: Meter | K42: Turbidimeter | M42: LOHG
C43: FILTER INFLUENT | G43: Fix. weir Splitter | I43: Proportional | K43: None
C44: FILTER EFFLUENT | G44: None | I44: None | K44: Hach 1720D | M44: Water Lvl Indicator
C45: BACKWASH WATER | E45: Filters & Pump | G45: Mot. Valve (Auto.) | I45: Ultrasonic | K45: None
C47: ADDITIONAL REMARKS: There flow distribution to the filter is controlled with a fixed-weir splitter box and a valve that is completely opened when the filter is on-line and is completely closed when the filter is out of service during backwash and the subsequent idle period.
G57: OPERATING PROCEDURES
C59: CALIBRATION | E59: Flow Meter | G59: Backwash Meter | I59: Mech. ROFC | K59: NTU (Primary) | L59: NTU (Secondary)
C60: Method | E60: Ultrasonic | G60: Ultrasonic | K60: Formazin | L60: Comparison
C61: Frequency | E61: Annual | G61: Annual | K61: Quarterly | L61: Weekly
C62: Date of Last | E62: 2015-06-13 | G62: 2015-06-13 | K62: 2016-01-24 | L62: 2016-02-14
C64: DATA CONSISTENCY | E64: Frequency and Span | G64: Date | I64: NTU Meter Display | K64: SCADA Display | L64: Data Recorder | M64: Grab Sample
C65: Test Data | E65: every 5 min, 0.00 - 5.00 | G65: 2016-02-19T14:35:00 | I65: 0.271 | K65: 0.269 | L65: 0.269445 | M65: 0.294
C67: BACKWASH | E67: Turbidity (NTU) | G67: LOH (ft) | I67: Run Time (hr) | K67: Run Volume (gal) | L67: Filtration Rate
C68: Criteria | E68: 1.0 NTU | G68: 10 | I68: 48 | K68: NA | L68: NA
C69: Monitoring Interval | E69: 5 min | G69: 8 hrs | I69: Each Shift
C71: WRITTEN SOPs | G71: ADDITIONAL REMARKS: We are creating a Filter Inspection SOP as part of this Filter Assessment.
C72: Plant Start-up | E72: Complete
C73: Filter Start-up | E73: Complete
C74: Plant Shutdown | E74: Partial
C75: Filter Shutdown | E75: Partial
C76: Filter Backwash | E76: Complete
C77: Filter Inspection | E77: None
D80: I certify that I am familiar with the information contained in this report and that, to the best of my knowledge, the information is true, complete, and accurate.
C82: Operator's
C83: Signature:
C85: Operator's Name (printed): | E85: Más Papeleo
C86: Certificate No. and Class: | E86: 987-65-4321 | K86: Date: | L86: 2016-02-23
C88: Submit Report to TCEQ/Water Supply Division/Public Drinking Water Section(MC-155), ATTN: Monthly Reports, P.O. Box 13087, Austin, TX 78711-3087
C89: The report is due the 10th of the following month
C91: TCEQ - 10277 (02-15-17) | I91: PAGE 1 | N91: Filter Assessment Report | Q91: FARv7ex | R91: 2017-02-15
C92: FILTER ASSESSMENT REPORT FOR INDIVIDUAL FILTERS
C93: FOR PUBLIC WATER SYSTEMS THAT ARE USING SURFACE WATER SOURCES OR GROUND WATER SOURCES UNDER
C94: THE INFLUENCE OF SURFACE WATER THAT ARE REQUIRED TO CONDUCT AN INDIVIDUAL FILTER ASSSESSMENT
C96: PUBLIC WATER | K96: PLANT NAME | L96: =IF($L$5="","",$L$5) -> PDWS Water Treatment Plant
C97: SYSTEM NAME: | D97: =IF($D$5="","",$D$5) -> TCEQ WSC | K97: OR NUMBER:
K99: FILTER | L99: =IF($L$7="","",$L$7) -> Filter No. 5
C100: PWS ID No.: | D100: =IF($D$7="","",$D$7) -> 1234567 | K100: NUMBER:
G102: CURRENT CONDITIONS
C104: DATE | E104: TIME | G104: TURBIDITY (NTU) | I104: LOH (ft) | K104: FLOW RATE (gpm) | L104: RUN TIME (hr) | M104: RUN VOLUME (gal)
C105: 2002-02-17 | E105: 06:00:00 | G105: 0.32 | I105: 7 | K105: 1100 | L105: 18.75 | M105: Unknown
C107: PHYSICAL CONDITION | G107: ADDITIONAL REMARKS: Some of the indicator marks on the LOHG ruler are not legible.
C108: Walls | E108: Good
C109: Troughs | E109: Minor Damage
C110: Suppl. Backwash | E110: Fully Operational
C111: Flow Meter
C112: ROFC | E112: Fully Operational
C113: Flow Control Valve | E113: Fully Operational
C114: Turbidimeter | E114: Fully Operational
C115: LOHG | E115: Slight Malfunction
G118: MEDIA SURFACE CONDITIONS
E120: Before BW | G120: After BW | K120: Before BW | L120: After BW
C121: MOUNDS | I121: RETRACTION
C122: Number | E122: 3 | G122: 1 | I122: Number | K122: 1 | L122: 0
C123: Length (inches) | E123: 6 - 12 | G123: 12 | I123: Length (inches) | K123: 18
C124: Width (inches) | E124: 6 - 9 | G124: 12 | I124: Width (inches) | K124: 1
C125: Height (inches) | E125: 1 - 2.5 | G125: 1.0 | I125: Depth (inches) | K125: 1.5
C126: DEPRESSIONS | I126: CRACKS
C127: Number | E127: 6 | G127: 0 | I127: Number | K127: 6 | L127: 0
C128: Length (inches) | E128: 18 - 36 | I128: Length (inches) | K128: 6 - 15
C129: Width (inches) | E129: 5 - 6 | I129: Width (inches) | K129: 0 - 0.5
C130: Depth (inches) | E130: 1.5 -3.75 | I130: Depth (inches) | K130: 0 - 0.5
C131: ACCUMULATED FLOC | I131: MUDBALLS
C132: Thickness (inches) | E132: 0 - 0.25 | G132: Minimal | I132: No. per ft2 | K132: >10 | L132: 0
C133: Distribution | E133: Uniform | G133: Uniform | I133: Size (inches) | K133: 0.25 - 0.75
I134: Distribution | K134: Localized
C136: ADDITIONAL REMARKS: The largest depressions are located adjacent to the backwash troughs. With the exception of one slight mound in the southwest corner of the filter, all of the anomalies were eliminated by the backwash cycle.B269
G146: BACKWASH CONDITIONS
C148: BW FLOW RATE (gpm) | E148: 2800 | G148: ADDITIONAL REMARKS: In one area of the filter, a severe jet was observed but we classified it as moderate because it did not seem to affect the backwash effectiveness in other parts of the filter.
C149: RISE RATE (inches/minute) | E149: =IF(E148="","",IF(OR(J17="",J17="ERROR"),"Surface area = ?",(E148/7.48)/J17*12)) -> 15.59714795
C150: LOADING RATE (gpm/ft2) | E150: =IF(E148="","",IF(OR(J17="",J17="ERROR"),"Surface Area = ?", E148/J17)) -> 9.722222222
C151: DURATION (minutes) | E151: 12
C152: TOTAL VOLUME (gallons) | E152: 39200
C154: TROUGHS
C155: Levelness | E155: Slighly Unlevel
C156: Flooding | E156: None
C157: SUPPL. BACKWASH
C158: Duration (minutes) | E158: 5
C159: Effectiveness | E159: Adequate
C161: JETTING
C162: No. of Sites | E162: 2
C163: Severity | E163: Moderate
C164: BW WATER DISTRIBUTION | E164: Even/Uniform
C165: SPENT BWW TURBIDITY | E165: 2.98
C167: EXPANSION (inches) | E167: 12
C168: EXPANSION (percent) | E168: =IF(E167="","",IF(E191="","Avg. Depth = ?",E167/E191*100)) -> 35.29411765
C169: YIELD (percent) | E169: =IF(E152="","",IF(M105="","Run Volume = ?",IF(M105="Unknown", "Unknown",(1-E152/M105)))) -> Unknown
C172: Submitted by: | K172: Date: | L172: =IF($L$86="","",$L$86) -> 2016-02-23
C174: =$C$91 -> TCEQ - 10277 (02-15-17) | I174: PAGE 2 | N174: Filter Assessment Report
C175: FILTER ASSESSMENT REPORT FOR INDIVIDUAL FILTERS
C176: FOR PUBLIC WATER SYSTEMS THAT ARE USING SURFACE WATER SOURCES OR GROUND WATER SOURCES UNDER
C177: THE INFLUENCE OF SURFACE WATER THAT ARE REQUIRED TO CONDUCT AN INDIVIDUAL FILTER ASSSESSMENT
C179: PUBLIC WATER | K179: PLANT NAME | L179: =IF($L$5="","",$L$5) -> PDWS Water Treatment Plant
C180: SYSTEM NAME: | D180: =IF($D$5="","",$D$5) -> TCEQ WSC | K180: OR NUMBER:
K182: FILTER | L182: =IF($L$7="","",$L$7) -> Filter No. 5
C183: PWS ID No.: | D183: =IF($D$7="","",$D$7) -> 1234567 | K183: NUMBER:
G185: FILTER PROBE
C187: NUMBER OF SITES | E187: 121 | G187: ADDITIONAL REMARKS: One relatively large gravel mound was detected in the northeast corner of the filter.
C188: MEDIA
C189: Max. Thickness (inches) | E189: 37
C190: Min. Thickness (inches) | E190: 26
C191: Typ. Thickness (inches) | E191: 34
C192: SUPPORT MATERIAL
C193: Max. Elevation | E193: 70
C194: Min. Elevation | E194: 77
C195: Typ. Elevation | E195: 75
G198: FILTER EXCAVATION
E200: REFERENCE | G200: SITE 2 | I200: SITE 3 | J200: SITE 4 | L200: SITE 5 | M200: SITE 6
C201: SITE CHARACTERISTIC | E201: Normal | G201: Normal | I201: Normal | J201: Media Mound | L201: Gravel Mound | M201: Crack
C202: LAYER 1 (Top Layer) | E202: 18 | G202: 19 | I202: 18 | J202: 21 | L202: 14 | M202: 18
C203: INTERFACE 1 | E203: 2.5 | G203: 2 | I203: 2 | J203: 1.5 | L203: 1.25 | M203: 2.5
C204: LAYER 2 | E204: 11 | G204: 12 | I204: 11 | J204: 11 | L204: 10 | M204: 12
C205: INTERFACE 2 | E205: 0.75 | G205: 0.5 | I205: 0.75 | J205: 0.5 | L205: 0.5
C206: LAYER 3 | E206: 4 | G206: 4 | I206: 3.75 | J206: 3 | L206: 0
C207: INTERFACE 3
C208: LAYER 4
C209: MUDBALLS | E209: Few | G209: None | I209: None | J209: Few | L209: None | M209: Few
C210: Max. Size (inches) | E210: 0.75 | J210: 0.5 | M210: 0.5
C211: Min. Size (inches) | E211: 0.25 | J211: 0.125 | M211: 0.25
C212: Max. Depth (inches) | E212: 4 | J212: 5 | M212: 3
E214: SITE 7 | G214: SITE 8 | I214: SITE 9 | J214: SITE 10 | L214: SITE 11 | M214: SITE 12
C215: SITE CHARACTERISTIC | E215: Retraction | G215: Jetting
C216: LAYER 1 (Top Layer) | E216: 18 | G216: 18
C217: INTERFACE 1 | E217: 2 | G217: 4.75
C218: LAYER 2 | E218: 12 | G218: 8
C219: INTERFACE 2 | E219: 1 | G219: 2.5
C220: LAYER 3 | E220: 3 | G220: 2
C221: INTERFACE 3
C222: LAYER 4
C223: MUDBALLS | E223: Several | G223: None
C224: Max. Size (inches) | E224: 0.75
C225: Min. Size (inches) | E225: 0.25
C226: Max. Depth (inches) | E226: 7
C228: MEDIA CONDITION | G228: ADDITIONAL REMARKS: The sand and garnet seemed in very good shape. The anthracite seemed slightly worn and encrusted. The anthracite grains did not seem very uniform in shape or size.
C229: Sharpness | E229: Good
C230: Encrustation | E230: Slight
C231: Uniformity | E231: Marginal
G234: ADDITIONAL STUDIES
C236: FILTER PROFILE ATTACHED? | E236: Yes | G236: ADDITIONAL REMARKS: Several of the mudballs were placed in a chlorine solution (200 ppm, pH=4.5) for 12 hours and the mudballs dissolved. A representative sample of filter media was dried in an oven, weighed, and then placed in the acidified chlorine solution. After 12 hours, the media was removed, rinsed several times, dried and reweighed. The media lost 12% of its mass. The chlorine solution had a brownish tint so we neutralized the chlorine with thiosulfate and ran iron and manganese tests on the material. The manganese result was 0.55 mg/L and the iron result was 0.2 mg/L.
C237: Note: A Filter Profile must be attached to this report.
C239: PERCENT MUDBALLS
C240: Media Volume (ml) | E240: 1680
C241: Mudball Volume (ml) | E241: 14
C242: % Mudballs | E242: =IF(AND(ISBLANK(E240),ISBLANK(E241)),"",IF(AND(E240<>0,ISBLANK(E241)),"Mudball Vol. = ?",IF(AND(ISBLANK(E240),E241<>0),"Media Vol. = ?",E241/(E240+E241)))) -> 0.00826446281
G245: CONCLUSIONS
C247: CONCLUSIONS: We have lost 5-6 inches of our anthracite and the anthracite that remains seems to no longer meet manufacturer's specifications. There is also a large gravel mound in one area of the filter. The presence of the severe backwash jet and the degree that the media layers were intermixed suggests that there is some underdrain damage in that part of the filter. The filter profile that was run on February 19th suggests that the performance of Filter No. 5 is adversely affected by sudden flow rate changes. | L247: CORRECTIVE ACTION PLAN ATTACHED?
L248: Yes
L250: WOULD YOU LIKE SOME TECHNICAL ASSISTANCE FROM THE TCEQ?
L252: No
G253: \
C255: Submitted by: | K255: Date: | L255: =IF($L$86="","",$L$86) -> 2016-02-23
C257: =$C$91 -> TCEQ - 10277 (02-15-17) | I257: PAGE 3 | N257: Filter Assessment Report
C258: FILTER ASSESSMENT REPORT FOR INDIVIDUAL FILTERS
C259: FOR PUBLIC WATER SYSTEMS THAT ARE USING SURFACE WATER SOURCES OR GROUND WATER SOURCES UNDER
C260: THE INFLUENCE OF SURFACE WATER THAT ARE REQUIRED TO CONDUCT AN INDIVIDUAL FILTER ASSSESSMENT
C262: PUBLIC WATER | K262: PLANT NAME | L262: =IF($L$5="","",$L$5) -> PDWS Water Treatment Plant
C263: SYSTEM NAME: | D263: =IF($D$5="","",$D$5) -> TCEQ WSC | K263: OR NUMBER:
K265: FILTER | L265: =IF($L$7="","",$L$7) -> Filter No. 5
C266: PWS ID No.: | D266: =IF($D$7="","",$D$7) -> 1234567 | K266: NUMBER:
G268: FILTER SCHEMATIC
C270: PREPARE A SIMPLE FILTER SCHEMATIC SHOWING THE LOCATION OF BACKWASH WATER TROUGHS, OBSERVED ANOMOLIES, AND EXCAVATION SITES.
C276: Excavation Site no.
C281: Post-backwash filter mound
C286: Severe backwash jet
C287: or Large Gravel Mound
C293: Pre-backwash media crack
C302: Pre-backwash media retraction
C308: Pre-backwash media depression
C314: Pre-backwash media mound
C331: Submitted by: | K331: Date: | L331: =IF($L$86="","",$L$86) -> 2016-02-23
... 32 more rows

Sheet Lists (hidden)
A2: FILTER TYPE | D2: OPERATING MODE | H2: YES/NO LIST | M2: FILTER LOADING RATE (REG)
A3: Gravity | D3: Constant Rate/Constant Level | H3: Yes | M3: Is it 6.5? | N3: =IF('Filter Assessment'!E14="","",IF(AND('Filter Assessment'!E14=A3,'Filter Assessment'!K14=D5,OR('Filter Assessment'!E19=A11,'Filter Assessment'!E19=A12,'Filter Assessment'!E19=A14)),"Yes","No")) -> No
A4: Pressure | D4: Constant Rate/Variable Level | H4: No | M4: Is it 5? | N4: =IF('Filter Assessment'!E14="","",IF(AND('Filter Assessment'!E14=A3,OR('Filter Assessment'!K14=D3,'Filter Assessment'!K14=D4),OR('Filter Assessment'!E19=A11,'Filter Assessment'!E19=A12,'Filter Assessment'!E19=A14)),"Yes","No")) -> Yes
A5: Permutit | D5: Declining Rate | M5: Is it 2.5? | N5: =IF('Filter Assessment'!E14="","",IF(AND('Filter Assessment'!E14=A3,'Filter Assessment'!K14=D5,'Filter Assessment'!E19=A13),"Yes","No")) -> No
A6: Other | D6: Other | M6: Is it 2? | N6: =IF('Filter Assessment'!E14="","",IF(OR('Filter Assessment'!E14=A4,'Filter Assessment'!E14=A5,AND('Filter Assessment'!E14=Lists!A3,'Filter Assessment'!E19=Lists!A13,OR('Filter Assessment'!K14=D3,'Filter Assessment'!K14=D4))),"Yes","No")) -> No
A10: MEDIA TYPE | D10: MEDIA MATERIAL | M10: BACKWASH LOADING RATE (REG)
A11: Multiple Media | D11: Anthracite | M11: MAX | N11: MIN
A12: Dual Media | D12: Sand | M12: 12.5 | N12: 21.8
A13: Rapid Sand | D13: Garnet
A14: Deep-bed Mono Media | D14: GAC
A15: Other | D15: Other
A16: Unknown | D16: Unknown
A20: UNDERDRAIN TYPE | D20: SUPPLEMENTAL BW FACILITIES
A21: Perforated Pipe | D21: None
A22: Perforated Plate | D22: Surface Wash
A23: Wheeler | D23: Subsurface Wash
A24: Type-S with gravel | D24: Air Scour
A25: Leopold IMS Cap | D25: Air Scour (retrofit)
A26: Other | D26: Other
A27: Unknown
A31: BW W ATER SOURCE | D31: CONTROLLER | G31: METER | I31: LOHG
A32: Filter Effluent | D32: None | G32: None | I32: None
A33: Filters & Pump | D33: Fix. weir Splitter | G33: Proportional | I33: Differential Gauge
A34: Dedicated BW Pump | D34: Var. weir Splitter | G34: Venturi | I34: Two Gauges
A35: Service Pumps | D35: Man. Telescoping | G35: Orifice | I35: Water Lvl Indicator
A36: Elevated BW Tank | D36: Man. Butterfly | G36: Ultrasonic | I36: Other
A37: Distribution | D37: Mechanical ROFC | G37: Propeller
A38: Other | D38: Mot. Valve (Auto.) | G38: Nunating Disk
D39: Vacuum Pipe | G39: Paddle
D40: Orifice Plate | G40: V-notch weir
D41: Head Control Box | G41: Flat Weir
D42: Other | G42: Parshall Flume
G43: Other
A47: FLOW METER CAL. | D47: TURBIDIMETER CAL. | G47: ROFC CAL. | I47: CALIBRATION FREQUENCY | L47: SOPs
A48: Unknown | D48: Formazin | G48: Unknown | I48: Less than Annual | L48: Complete
A49: Weirs | D49: Stabilzed formazin | G49: Ultrasonic | I49: Annual | L49: Partial
A50: Flume | D50: Polymer beads | G50: Time & Volume | I50: Semi-annual | L50: Out-of-date
A51: Ultrasonic | D51: Gel | G51: Other | I51: Quarterly | L51: None
A52: Time & Volume | D52: Comparison | I52: Monthly
A53: Other | D53: Proprietary device | I53: Weekly
D54: Other | I54: Daily
I55: More than daily
A59: CONDITION OF FILTER | D59: CONDITION OF APPERTENANCES | H59: FLOC/MUDBALL DISTRIBUTION
A60: Excellent | D60: Fully Operational | H60: Uniform
A61: Good | D61: Slight Malfunction | H61: Localized
A62: Minor Damage | D62: Moderate Malfunct | H62: Other
A63: Moderate Damage | D63: Severe Malfunction
A64: Severe Damage | D64: Other
A65: Other
A70: TROUGH LEVELNESS | D70: FLOODING | F70: SUPPL. EFFECTIVENESS | I70: JETTING | K70: BBW DISTRIBUTION
A71: Level | D71: None | F71: Excellent | I71: Slight | K71: Even/Uniform
A72: Slighly Unlevel | D72: Slight | F72: Adequate | I72: Moderate | K72: Uneven
A73: Moder. Unlevel | D73: Moderate | F73: Poor | I73: Severe | K73: Inadequate
A74: Severely Unlevel | D74: Severe | F74: Ineffective | K74: Other
D75: Complete
A79: SITE CONDITION | D79: MUDBALLS | F79: SHARPNESS | H79: ENCRUSTATION | J79: UNIFORMITY
A80: Normal | D80: None | F80: Excellent | H80: None | J80: Good
A81: Media Mound | D81: Few | F81: Good | H81: Slight | J81: Marginal
A82: Media Depression | D82: Several | F82: Worn | H82: Moderate | J82: Poor
A83: Crack | D83: Many | H83: Heavy | J83: Other
A84: Retraction
A85: Floc. Accumul.
A86: Gravel Mound
A87: Gravel Depression
A88: Poor Suppl. BW
A89: Jetting
A90: Poor BW Distr.
A91: Other

Sheet Data
A1: Time | B1: Flow Rate | C1: IFE NTU | D1: Description of the Event or Cause of the Spike
A2: 2016-02-19T12:00:00
A3: =+A2+0.000694444444444444 -> 2016-02-19T12:01:00
A4: =+A3+0.000694444444444444 -> 2016-02-19T12:02:00
A5: 2016-02-19T12:03:00
A6: 2016-02-19T12:04:00
A7: 2016-02-19T12:05:00
A8: 2016-02-19T12:06:00
A9: 2016-02-19T12:07:00
A10: 2016-02-19T12:08:00
A11: 2016-02-19T12:09:00
A12: 2016-02-19T12:10:00
A13: 2016-02-19T12:11:00
A14: 2016-02-19T12:12:00
A15: 2016-02-19T12:13:00
A16: 2016-02-19T12:14:00
A17: 2016-02-19T12:15:00
A18: 2016-02-19T12:16:00
A19: 2016-02-19T12:17:00
A20: 2016-02-19T12:18:00
A21: 2016-02-19T12:19:00
A22: 2016-02-19T12:20:00
A23: 2016-02-19T12:21:00
A24: 2016-02-19T12:22:00
A25: 2016-02-19T12:23:00
A26: 2016-02-19T12:24:00
A27: 2016-02-19T12:25:00
A28: 2016-02-19T12:26:00
A29: 2016-02-19T12:27:00
A30: 2016-02-19T12:28:00
A31: 2016-02-19T12:29:00
A32: 2016-02-19T12:30:00
A33: 2016-02-19T12:31:00
A34: 2016-02-19T12:32:00
A35: 2016-02-19T12:33:00
A36: 2016-02-19T12:34:00
A37: 2016-02-19T12:35:00
A38: 2016-02-19T12:36:00
A39: 2016-02-19T12:37:00
A40: 2016-02-19T12:38:00
A41: 2016-02-19T12:39:00
A42: 2016-02-19T12:40:00
A43: 2016-02-19T12:41:00
A44: 2016-02-19T12:42:00
A45: 2016-02-19T12:43:00
A46: 2016-02-19T12:44:00
A47: 2016-02-19T12:45:00
A48: 2016-02-19T12:46:00
A49: 2016-02-19T12:47:00
A50: 2016-02-19T12:48:00
A51: 2016-02-19T12:49:00
A52: 2016-02-19T12:50:00
A53: 2016-02-19T12:51:00
A54: 2016-02-19T12:52:00
A55: 2016-02-19T12:53:00
A56: 2016-02-19T12:54:00
A57: 2016-02-19T12:55:00
A58: 2016-02-19T12:56:00
A59: 2016-02-19T12:57:00
A60: 2016-02-19T12:58:00
A61: 2016-02-19T12:59:00
A62: 2016-02-19T13:00:00
A63: 2016-02-19T13:01:00
A64: 2016-02-19T13:02:00
A65: 2016-02-19T13:03:00
A66: 2016-02-19T13:04:00
A67: 2016-02-19T13:05:00
A68: =+A67+0.000694444444444444 -> 2016-02-19T13:06:00
A69: 2016-02-19T13:07:00
A70: 2016-02-19T13:08:00
A71: 2016-02-19T13:09:00
A72: 2016-02-19T13:10:00
A73: 2016-02-19T13:11:00
A74: 2016-02-19T13:12:00
A75: 2016-02-19T13:13:00
A76: 2016-02-19T13:14:00
A77: 2016-02-19T13:15:00
A78: 2016-02-19T13:16:00
A79: 2016-02-19T13:17:00
A80: 2016-02-19T13:18:00
A81: 2016-02-19T13:19:00
A82: 2016-02-19T13:20:00
A83: 2016-02-19T13:21:00
A84: 2016-02-19T13:22:00
A85: =+A84+0.000694444444444444 -> 2016-02-19T13:23:00
A86: 2016-02-19T13:24:00
A87: 2016-02-19T13:25:00
A88: 2016-02-19T13:26:00
A89: 2016-02-19T13:27:00
A90: =+A89+0.000694444444444444 -> 2016-02-19T13:28:00 | C90: 0.125 | D90: RTS after backwash
A91: 2016-02-19T13:29:00 | C91: 0.128
A92: =+A91+1/1440 -> 2016-02-19T13:30:00 | C92: 0.134
A93: 2016-02-19T13:31:00 | C93: 0.138
A94: 2016-02-19T13:32:00 | C94: 0.151
A95: 2016-02-19T13:33:00 | C95: 0.156
A96: 2016-02-19T13:34:00 | C96: 0.163
A97: 2016-02-19T13:35:00 | C97: 0.158
A98: 2016-02-19T13:36:00 | C98: 0.165
A99: 2016-02-19T13:37:00 | C99: 0.169
A100: 2016-02-19T13:38:00 | C100: 0.176
A101: 2016-02-19T13:39:00 | C101: 0.186
A102: 2016-02-19T13:40:00 | C102: 0.183
A103: 2016-02-19T13:41:00 | C103: 0.187
A104: 2016-02-19T13:42:00 | C104: 0.194
A105: 2016-02-19T13:43:00 | C105: 0.193
A106: 2016-02-19T13:44:00 | C106: 0.194
A107: 2016-02-19T13:45:00 | C107: 0.203
A108: 2016-02-19T13:46:00 | C108: 0.246
A109: 2016-02-19T13:47:00 | C109: 0.182
A110: 2016-02-19T13:48:00 | C110: 0.359
A111: 2016-02-19T13:49:00 | C111: 0.408
A112: 2016-02-19T13:50:00 | C112: 0.422
A113: 2016-02-19T13:51:00 | C113: 0.468
A114: 2016-02-19T13:52:00 | C114: 0.496
A115: 2016-02-19T13:53:00 | C115: 0.511
A116: 2016-02-19T13:54:00 | C116: 0.549
A117: 2016-02-19T13:55:00 | C117: 0.579
A118: 2016-02-19T13:56:00 | C118: 0.614
A119: 2016-02-19T13:57:00 | C119: 0.582
A120: 2016-02-19T13:58:00 | C120: 0.514
A121: 2016-02-19T13:59:00 | C121: 0.478
A122: 2016-02-19T14:00:00 | C122: 0.443
A123: 2016-02-19T14:01:00 | C123: 0.427
A124: 2016-02-19T14:02:00 | C124: 0.403
A125: 2016-02-19T14:03:00 | C125: 0.398
A126: 2016-02-19T14:04:00 | C126: 0.395
A127: 2016-02-19T14:05:00 | C127: 0.392
A128: 2016-02-19T14:06:00 | C128: 0.39
A129: 2016-02-19T14:07:00 | C129: 0.387
A130: 2016-02-19T14:08:00 | C130: 0.373
A131: 2016-02-19T14:09:00 | C131: 0.382
A132: 2016-02-19T14:10:00 | C132: 0.343
A133: 2016-02-19T14:11:00 | C133: 0.353
A134: 2016-02-19T14:12:00 | C134: 0.352
A135: 2016-02-19T14:13:00 | C135: 0.347
A136: 2016-02-19T14:14:00 | C136: 0.343
A137: 2016-02-19T14:15:00 | C137: 0.346
A138: 2016-02-19T14:16:00 | C138: 0.346
A139: 2016-02-19T14:17:00 | C139: 0.346
A140: 2016-02-19T14:18:00 | C140: 0.348
A141: 2016-02-19T14:19:00 | C141: 0.346
A142: 2016-02-19T14:20:00 | C142: 0.344
A143: 2016-02-19T14:21:00 | C143: 0.343
A144: 2016-02-19T14:22:00 | C144: 0.341
A145: 2016-02-19T14:23:00 | C145: 0.341
A146: 2016-02-19T14:24:00 | C146: 0.34
A147: 2016-02-19T14:25:00 | C147: 0.339
A148: 2016-02-19T14:26:00 | C148: 0.338
A149: 2016-02-19T14:27:00 | C149: 0.338
A150: 2016-02-19T14:28:00 | C150: 0.337
A151: 2016-02-19T14:29:00 | C151: 0.336
A152: 2016-02-19T14:30:00 | C152: 0.335
A153: 2016-02-19T14:31:00 | C153: 0.335
A154: 2016-02-19T14:32:00 | C154: 0.335
A155: 2016-02-19T14:33:00 | C155: 0.337
A156: =+A155+1/1440 -> 2016-02-19T14:34:00 | C156: 0.334
A157: 2016-02-19T14:35:00 | C157: 0.335
A158: 2016-02-19T14:36:00 | C158: 0.332
A159: 2016-02-19T14:37:00 | C159: 0.331
A160: 2016-02-19T14:38:00 | C160: 0.33
A161: 2016-02-19T14:39:00 | C161: 0.33
A162: 2016-02-19T14:40:00 | C162: 0.329
A163: 2016-02-19T14:41:00 | C163: 0.328
A164: 2016-02-19T14:42:00 | C164: 0.328
A165: 2016-02-19T14:43:00 | C165: 0.327
A166: 2016-02-19T14:44:00 | C166: 0.327
A167: 2016-02-19T14:45:00 | C167: 0.328
A168: 2016-02-19T14:46:00 | C168: 0.326
A169: 2016-02-19T14:47:00 | C169: 0.325
A170: 2016-02-19T14:48:00 | C170: 0.324
A171: 2016-02-19T14:49:00 | C171: 0.326
A172: 2016-02-19T14:50:00 | C172: 0.322
A173: 2016-02-19T14:51:00 | C173: 0.322
A174: 2016-02-19T14:52:00 | C174: 0.318
A175: 2016-02-19T14:53:00 | C175: 0.319
A176: 2016-02-19T14:54:00 | C176: 0.317
A177: 2016-02-19T14:55:00 | C177: 0.317
A178: 2016-02-19T14:56:00 | C178: 0.316
A179: 2016-02-19T14:57:00 | C179: 0.316
A180: 2016-02-19T14:58:00 | C180: 0.315
A181: 2016-02-19T14:59:00 | C181: 0.315
A182: 2016-02-19T15:00:00 | C182: 0.314
A183: 2016-02-19T15:01:00 | C183: 0.313
A184: 2016-02-19T15:02:00 | C184: 0.314
A185: 2016-02-19T15:03:00 | C185: 0.313
A186: 2016-02-19T15:04:00 | C186: 0.313
A187: 2016-02-19T15:05:00 | C187: 0.312
A188: 2016-02-19T15:06:00 | C188: 0.311
A189: 2016-02-19T15:07:00 | C189: 0.314
A190: 2016-02-19T15:08:00 | C190: 0.313
A191: 2016-02-19T15:09:00 | C191: 0.314
A192: 2016-02-19T15:10:00 | C192: 0.313
A193: 2016-02-19T15:11:00 | C193: 0.313
A194: 2016-02-19T15:12:00 | C194: 0.314
A195: 2016-02-19T15:13:00 | C195: 0.313
A196: 2016-02-19T15:14:00 | C196: 0.312
A197: 2016-02-19T15:15:00 | C197: 0.313
A198: 2016-02-19T15:16:00 | C198: 0.31
A199: 2016-02-19T15:17:00 | C199: 0.309
A200: 2016-02-19T15:18:00 | C200: 0.31
... 2022 more rows

Sheet Sheet1
